bitfinex/quotes_ETHUSD_20260227
["timestamp","ask_amount","ask_price","bid_price","bid_amount"]
[1772214177570,2.46045134,1923.5,1922.9,0.0011]
[1772214177774,1.29978163,1923.4,1922.9,0.0011]
[1772214178471,2.46045134,1923.3,1922.8,0.0011]
[1772214178650,1.29978163,1923.4,1922.8,0.46808959]
[1772214178854,1.29957635,1923.8,1922.9,0.46698959]
[1772214179074,1.29957635,1923.8,1923.1,0.46698959]
[1772214179668,1.30049439,1923.9,1923.1,0.46698959]
[1772214179870,1.30049439,1923.9,1923.2,1.2999168]
[1772214180246,1.30049439,1923.9,1923.1,1.76692531]
[1772214180757,1.30049439,1923.9,1923.2,0.46698959]
[1772214182369,2.46045134,1923.7,1922.9,0.46698959]
[1772214182563,2.46045134,1923.7,1922.9,1.76709929]
[1772214182759,2.46045134,1923.4,1922.8,0.0011]
[1772214182976,3.58145134,1923.6,1922.8,1.76826875]
[1772214183163,3.58145134,1923.6,1922.8,0.46808959]
[1772214183472,3.58145134,1923.6,1922.8,1.7682741]
[1772214183674,3.58145134,1923.6,1922.8,0.46808959]
[1772214183867,3.58145134,1923.6,1922.8,1.76827438]
[1772214184171,1.29971406,1923.5,1922.8,0.0011]
[1772214184578,1.29971406,1923.5,1922.6,0.0011]
[1772214184579,2.46045134,1923.3,1922.6,0.0011]
[1772214184747,2.42064649,1923.6,1922.6,0.46808959]
[1772214184949,1.121,1923.6,1922.6,0.46808959]
[1772214185144,2.42065266,1923.6,1922.7,0.46698959]
[1772214185345,2.42065275,1923.6,1922.9,0.46698959]
[1772214185548,1.121,1923.6,1922.9,0.46698959]
[1772214185946,1.29961621,1923.7,1922.9,0.46698959]
[1772214186143,5.19817626,1923.8,1923.0,1.300052]
[1772214186367,5.19817626,1923.8,1923.1,0.46698959]
[1772214187483,0.001,1923.5,1923.1,0.46698959]
[1772214187958,0.001,1923.9,1923.1,0.46698959]
[1772214188161,0.48492139,1924.8,1923.5,0.46698959]
[1772214188465,1.30087918,1924.3,1923.7,0.46698959]
[1772214188667,1.30087918,1924.7,1923.7,0.46698959]
[1772214188860,1.30087918,1924.6,1923.7,0.46698959]
[1772214189489,1.30087918,1924.6,1923.9,0.46698959]
[1772214189689,1.30087918,1924.5,1923.4,1.29978163]
[1772214189863,1.78580057,1924.7,1923.6,0.46698959]
[1772214190756,1.29897121,1924.6,1923.6,0.46698959]
[1772214190967,3.18458015,1924.4,1923.3,0.47024708]
[1772214191556,1.30087918,1924.3,1923.3,0.47024708]
[1772214193194,1.29924124,1924.2,1923.4,1.29978163]
[1772214194162,1.29924124,1924.2,1923.3,1.77005632]
[1772214194490,1.30087918,1924.1,1923.3,1.77005632]
[1772214194658,1.29924124,1924.2,1923.3,1.77005632]
[1772214194862,1.30087918,1924.1,1923.4,0.47024708]
[1772214195896,1.30087918,1924.0,1923.6,0.47024708]
[1772214196067,1.30087918,1924.2,1923.6,0.47024708]
[1772214196467,1.30087918,1924.1,1923.6,0.47024708]
[1772214196783,1.30087918,1924.3,1923.6,0.47024708]
[1772214197087,1.77888126,1924.5,1923.6,0.47024708]
[1772214197294,1.77888126,1924.5,1923.5,1.29971406]
[1772214197675,1.77888126,1924.5,1923.5,1.76996114]
[1772214197875,2.59996464,1924.5,1923.7,1.76982601]
[1772214199381,0.001,1924.1,1923.7,1.76982601]
[1772214200304,0.001,1924.1,1923.4,0.47024708]
[1772214200509,1.30087918,1924.0,1923.1,0.47024708]
[1772214200794,0.47800208,1923.9,1923.1,0.47024708]
[1772214200966,0.47800208,1923.9,1923.1,1.77022659]
[1772214201168,1.30087918,1924.0,1923.1,1.77022659]
[1772214202193,1.29944383,1923.9,1923.1,1.77022659]
[1772214203379,1.30087918,1923.8,1923.1,1.77022659]
[1772214203771,1.30087918,1923.7,1923.1,1.77022659]
[1772214204179,2.60047223,1923.7,1923.1,1.77022659]
[1772214204905,1.30087918,1923.6,1923.0,0.00153886]
[1772214205083,1.77888126,1923.6,1923.0,0.00153886]
[1772214206172,2.60059673,1923.5,1923.0,0.47178594]
[1772214206383,1.29971755,1923.5,1923.0,0.47178594]
[1772214206582,5.19875058,1923.6,1923.0,0.47178594]
[1772214206583,1.29968882,1923.6,1923.0,0.47178594]
[1772214206806,1.30087918,1923.5,1923.0,0.47178594]
[1772214208202,1.30087918,1923.5,1923.1,1.2999844]
[1772214208994,1.30087918,1923.5,1923.1,1.77023148]
[1772214209687,1.30087918,1923.5,1923.1,2.86123148]
[1772214209902,1.19737882,1923.5,1923.1,2.86123148]
[1772214210070,1.29942985,1924.0,1923.2,0.47024708]
[1772214210269,0.69737882,1923.8,1923.3,1.29984921]
[1772214211069,0.69737882,1923.8,1923.3,2.39184921]
[1772214211290,1.99689703,1923.8,1923.2,0.47134708]
[1772214211491,0.69737882,1923.7,1923.2,0.0011]
[1772214212412,1.29964649,1923.6,1923.2,0.0011]
[1772214213113,5.89587889,1923.7,1923.2,0.0011]
[1772214213434,0.69737882,1923.6,1923.2,0.0011]
[1772214214117,1.29953767,1923.8,1923.3,1.093]
[1772214214282,0.69737882,1923.7,1923.3,1.093]
[1772214214594,0.69737882,1923.7,1923.4,1.29978163]
[1772214215186,0.001,1924.1,1923.4,0.47024708]
[1772214215392,1.9969121,1924.0,1923.4,0.47024708]
[1772214215690,1.9969121,1924.0,1923.5,1.094]
[1772214215889,1.9969121,1924.0,1923.6,1.094]
[1772214216200,1.9969121,1924.0,1923.5,1.094]
[1772214216578,1.9969121,1924.0,1923.6,1.29964649]
[1772214217295,0.001,1924.1,1923.7,0.47024708]
[1772214217615,1.9969121,1924.0,1923.6,1.29964649]
[1772214218685,1.9969121,1924.0,1923.6,2.39664649]
[1772214218881,1.9969121,1924.0,1923.6,1.097]
[1772214220820,1.9969121,1924.0,1923.5,1.29966599]
[1772214221013,1.9969121,1924.0,1923.6,1.098]
[1772214221985,1.9969121,1924.0,1923.5,1.29966599]
[1772214222192,1.9969121,1924.0,1923.6,1.099]
[1772214223131,1.9969121,1924.0,1923.6,2.39861147]
[1772214223616,3.29630629,1924.0,1923.4,0.47024708]
[1772214223844,0.48851314,1923.4,1923.0,0.00263886]
[1772214224525,2.94937119,1923.7,1923.0,0.00263886]
[1772214224721,1.9958121,1923.6,1923.0,0.00263886]
[1772214225098,1.9958121,1923.6,1923.3,0.0011]
[1772214225298,3.7840393,1923.5,1923.0,0.00263886]
[1772214225727,0.48851314,1923.4,1923.0,0.00263886]
[1772214227032,1.9958121,1923.3,1923.0,0.00263886]
[1772214227832,1.9958121,1923.2,1923.0,0.00263886]
[1772214229530,1.9958121,1923.2,1922.6,5.69442424]
[1772214229531,3.29581598,1923.1,1922.6,2.4004089]
[1772214229824,1.9958121,1923.0,1922.6,1.1001]
[1772214230227,0.001,1923.9,1922.8,0.4921548]
[1772214230542,0.001,1923.9,1922.6,2.40041323]
[1772214230543,1.2992299,1924.3,1923.4,0.4921548]
[1772214230838,1.2992299,1924.3,1923.0,2.46085805]
[1772214230839,0.48951314,1924.4,1923.5,1.5331548]
[1772214231026,0.001,1924.4,1923.6,0.4921548]
[1772214231226,1.30011429,1924.4,1923.6,0.4921548]
[1772214231626,0.001,1924.4,1923.6,0.4921548]
[1772214231833,0.48951314,1924.4,1923.7,2.39857893]
[1772214233705,0.48951314,1924.4,1923.4,5.19907447]
[1772214233914,3.44258887,1924.1,1923.3,1.79195651]
[1772214234237,3.93110201,1924.1,1923.3,2.39880171]
[1772214234543,0.48851314,1924.1,1923.3,2.39880171]
[1772214234905,1.29917372,1924.3,1923.3,2.89095651]
[1772214235125,1.78768686,1924.3,1923.3,2.89095651]
[1772214235538,0.48851314,1924.2,1923.3,2.89095651]
[1772214235846,1.7878219,1924.1,1923.0,0.49369366]
[1772214236153,1.7878219,1924.1,1923.1,6.29884161]
[1772214236154,0.48851314,1924.0,1923.1,6.29884161]
[1772214236344,0.48851314,1924.0,1923.2,1.099]
[1772214236835,0.48851314,1924.0,1923.0,2.4005357]
[1772214238031,1.78795697,1923.9,1923.0,2.4005357]
[1772214238244,1.78895697,1923.9,1923.0,2.4005357]
[1772214238645,1.78895697,1923.9,1923.0,1.3015357]
[1772214238816,1.78895697,1923.9,1923.0,2.4005357]
[1772214239143,1.78895697,1923.9,1923.0,2.8926905]
[1772214240529,1.78895697,1923.9,1923.1,0.4921548]
[1772214240956,1.78895697,1923.9,1923.1,1.5911548]
[1772214241241,1.30044947,1923.9,1923.2,0.4921548]
[1772214241430,1.30044947,1923.9,1923.1,1.099]
[1772214242316,1.30045067,1923.9,1923.3,1.29984921]
[1772214242549,0.48851314,1923.8,1923.1,1.099]
[1772214242921,0.48851314,1923.8,1923.0,0.00153886]
[1772214243218,0.48851314,1923.8,1923.0,1.30158824]
[1772214244029,0.48851314,1923.8,1923.0,0.00153886]
[1772214244443,1.78809207,1923.7,1923.0,1.30158181]
[1772214244632,1.78809207,1923.7,1923.0,0.00153886]
[1772214244836,0.48851314,1923.6,1923.0,0.00153886]
[1772214246453,1.29971406,1923.5,1923.0,0.00153886]
[1772214247149,1.29964649,1923.6,1923.0,0.00153886]
[1772214247351,0.48951314,1923.9,1923.0,0.49369366]
[1772214247531,1.78900496,1923.9,1923.0,0.49369366]
[1772214248748,0.001,1923.9,1923.2,0.4921548]
[1772214249053,0.001,1923.9,1923.1,1.2999844]
[1772214249054,0.001,1923.9,1923.3,1.5891548]
[1772214249256,0.001,1923.9,1923.4,0.4921548]
[1772214249438,1.29917372,1924.3,1923.4,0.4921548]
[1772214250043,1.78554064,1924.3,1923.4,0.4921548]
[1772214250358,0.001,1924.0,1923.4,0.4921548]
[1772214250568,0.48736692,1924.0,1923.2,1.097]
[1772214250741,1.29944383,1923.9,1923.3,1.29984921]
[1772214253661,1.78581075,1923.9,1923.3,2.39784921]
[1772214253862,1.78581075,1923.9,1923.3,1.29984921]
[1772214254042,1.78581075,1923.9,1923.3,2.39784921]
[1772214256054,1.29944383,1923.9,1923.3,2.86258165]
[1772214260361,1.78677838,1924.0,1923.3,2.86258165]
[1772214260670,1.78677838,1924.0,1923.4,0.46473244]
[1772214260671,1.78675123,1924.0,1923.4,0.46473244]
[1772214262370,1.78675123,1924.0,1923.4,1.7644572]
[1772214262840,1.78675123,1924.0,1923.4,1.7655572]
[1772214263275,0.001,1923.8,1923.4,1.7655572]
[1772214264065,0.001,1923.8,1923.5,1.103]
[1772214265277,0.001,1923.8,1923.4,0.0011]
[1772214265278,0.48736692,1923.8,1923.4,0.0011]
[1772214265574,0.48736692,1923.8,1923.2,1.104]
[1772214266376,0.48636692,1923.7,1923.1,0.0011]
[1772214267493,0.48636692,1923.5,1923.1,0.0011]
[1772214269268,2.91492333,1923.8,1923.1,0.46583244]
[1772214269569,2.91492333,1923.8,1923.2,1.2999168]
[1772214270847,2.91492333,1923.8,1923.2,1.76464924]
[1772214271047,1.78692333,1923.8,1923.2,1.76464924]
[1772214271764,1.78688648,1923.8,1923.2,1.76464924]
[1772214275486,1.78688648,1923.8,1923.2,2.87164924]
[1772214275882,1.78690114,1923.8,1923.3,0.46473244]
[1772214276181,1.78690114,1923.8,1923.3,1.108]
[1772214276182,0.48636692,1923.7,1923.3,1.108]
[1772214276380,0.48636692,1923.7,1923.3,1.1091]
[1772214276562,0.48736692,1923.7,1923.3,1.1091]
[1772214277177,0.48736692,1923.7,1923.3,0.0011]
[1772214278177,1.29964649,1923.6,1923.3,0.0011]
[1772214278389,5.68574411,1923.7,1923.3,0.0011]
[1772214279783,0.001,1923.8,1923.4,0.46528809]
[1772214279988,0.001,1923.8,1923.3,0.0011]
[1772214279989,0.47159944,1924.6,1923.6,0.46528809]
[1772214280274,0.47159944,1924.6,1923.7,1.77299633]
[1772214280275,1.75863489,1924.5,1923.7,1.77299633]
[1772214280644,1.75863489,1924.5,1923.8,0.4734174]
[1772214280886,0.45959618,1924.8,1924.0,0.4734174]
[1772214281393,1.75988704,1925.0,1924.0,0.4734174]
[1772214281552,0.45959618,1924.9,1924.0,1.5804174]
[1772214282074,0.45959618,1924.8,1924.1,0.4734174]
[1772214282378,1.75848227,1924.8,1924.2,1.29924124]
[1772214282674,1.75848227,1924.8,1924.1,0.4734174]
[1772214282878,0.45959618,1924.7,1923.8,1.5804174]
[1772214283077,0.45959618,1924.5,1923.6,1.77306389]
[1772214283376,0.45959618,1924.5,1923.7,0.4734174]
[1772214283550,0.45959618,1924.7,1923.7,0.4734174]
[1772214284450,1.29897121,1924.6,1923.9,0.4734174]
[1772214284679,1.75856739,1924.6,1923.9,0.4734174]
[1772214284870,2.43387646,1924.8,1924.1,0.4734174]
[1772214285961,1.29887646,1924.8,1924.1,0.4734174]
[1772214286276,1.30024102,1925.0,1924.1,0.4734174]
[1772214286477,1.30024102,1925.0,1924.3,0.4734174]
[1772214286870,1.7598372,1925.0,1924.3,0.4734174]
[1772214288380,1.75843242,1924.8,1924.2,1.29924124]
[1772214288554,0.45959618,1924.8,1924.2,1.29924124]
[1772214288755,0.45959618,1924.8,1924.2,1.77265864]
[1772214288955,0.001,1924.6,1924.2,1.77265864]
[1772214289367,0.001,1924.6,1924.3,0.4734174]
[1772214289981,0.00153886,1925.0,1924.4,0.4734174]
[1772214290282,1.30025844,1925.0,1924.4,0.4734174]
[1772214290481,0.46113504,1925.0,1924.3,1.29912928]
[1772214291062,0.46113504,1925.0,1924.2,2.87963104]
[1772214291657,0.46113504,1925.0,1924.2,1.77263104]
[1772214291859,0.46113504,1925.0,1924.3,0.4734174]
[1772214292569,1.75836494,1924.9,1924.4,1.29910621]
[1772214294187,1.75836494,1924.9,1924.3,0.4734174]
[1772214294391,1.75836494,1924.9,1924.1,1.108]
[1772214294392,0.45959618,1924.8,1924.1,1.108]
[1772214294759,1.7584999,1924.7,1924.1,2.40725795]
[1772214294995,1.7584999,1924.7,1924.1,1.29925795]
[1772214295784,1.7584999,1924.7,1924.1,1.77267535]
[1772214296013,0.45959618,1924.7,1924.1,1.77267535]
[1772214296484,1.75837424,1924.9,1924.1,1.77267535]
[1772214296790,1.75837424,1924.9,1924.3,1.29917372]
[1772214297281,1.75837424,1924.9,1924.1,0.4734174]
[1772214297282,0.45959618,1924.8,1924.1,0.4734174]
[1772214297508,0.45959618,1924.8,1924.1,2.40830876]
[1772214298088,0.45959618,1924.8,1924.1,1.29930876]
[1772214299072,1.29890372,1924.7,1924.1,1.77272616]
[1772214299997,1.75843242,1924.8,1924.2,0.4734174]
[1772214300887,0.45959618,1924.7,1924.1,2.40930876]
[1772214301085,0.45959618,1924.7,1924.2,0.0011]
[1772214301086,1.29897121,1924.6,1924.2,0.0011]
[1772214301284,1.75856739,1924.6,1924.2,0.0011]
[1772214301484,0.45959618,1924.5,1924.2,0.0011]
[1772214301686,1.75954451,1924.7,1924.2,0.0011]
[1772214302000,0.46059618,1924.7,1924.2,0.0011]
[1772214302298,1.29990613,1924.7,1924.2,0.4745174]
[1772214302879,0.001,1924.7,1924.2,0.4745174]
[1772214303079,0.001,1924.7,1924.2,1.30034124]
[1772214303773,0.001,1924.7,1924.3,0.4734174]
[1772214305076,0.001,1924.7,1924.2,0.0011]
[1772214305077,1.29897121,1924.6,1924.2,0.0011]
[1772214305600,1.7594999,1924.7,1924.2,0.0011]
[1772214305974,0.46059618,1924.7,1924.2,0.0011]
[1772214306194,1.75950215,1924.7,1924.2,0.0011]
[1772214306586,0.45959618,1924.6,1924.2,0.0011]
[1772214307204,0.45959618,1924.6,1924.0,0.0011]
[1772214307205,0.45959618,1924.4,1924.0,0.0011]
[1772214309394,1.75871515,1924.4,1924.0,0.0011]
[1772214310106,0.45959618,1924.4,1924.0,0.0011]
[1772214310306,1.7587099,1924.4,1924.0,0.0011]
[1772214310808,0.45959618,1924.4,1924.0,0.0011]
[1772214311606,1.75870437,1924.4,1924.0,0.0011]
[1772214313008,0.48484666,1924.3,1924.0,0.0011]
[1772214313582,1.29924124,1924.2,1924.0,0.0011]
[1772214313805,0.48484666,1924.1,1924.0,0.0011]
[1772214314396,0.48484666,1924.9,1924.0,0.49737559]
[1772214314582,1.78475636,1924.7,1924.1,0.49737559]
[1772214314777,0.48584666,1924.6,1924.1,0.0011]
[1772214314985,0.48484666,1924.5,1924.1,0.0011]
[1772214315581,1.78391545,1924.5,1924.1,0.0011]
[1772214317212,0.48584666,1924.6,1924.1,0.49737559]
[1772214317412,1.78482162,1924.6,1924.1,0.49737559]
[1772214318205,1.78482466,1924.6,1924.2,1.29924124]
[1772214318412,0.48484666,1924.5,1924.1,0.0011]
[1772214318611,0.48484666,1924.5,1924.1,1.30040836]
[1772214318813,0.48484666,1924.5,1924.1,0.0011]
[1772214321619,1.78390027,1924.5,1924.1,0.0011]
[1772214323126,0.48484666,1924.5,1924.1,0.0011]
[1772214323302,0.001,1924.6,1924.1,0.49737559]
[1772214323716,0.001,1924.6,1924.2,1.29924124]
[1772214323897,0.001,1924.6,1924.3,0.49627559]
[1772214324625,0.00153886,1925.0,1924.4,0.49627559]
[1772214325011,0.00153886,1925.0,1924.6,0.49627559]
[1772214325198,0.00153886,1925.0,1924.7,0.49627559]
[1772214325395,1.29834083,1925.6,1924.8,0.49627559]
[1772214325770,1.78327815,1925.4,1924.8,1.29883624]
[1772214325905,0.48484666,1925.3,1924.6,1.29894711]
[1772214326713,1.63184666,1925.3,1924.6,1.29894711]
[1772214326918,1.63184666,1925.3,1924.6,1.7952227]
[1772214327342,0.48484666,1925.1,1924.4,1.29905209]
[1772214327495,0.48484666,1925.1,1924.4,1.79532768]
[1772214328108,1.7834855,1925.1,1924.4,1.79532768]
[1772214328519,0.48484666,1925.0,1924.4,1.79532768]
[1772214328931,0.48484666,1924.8,1924.2,1.7965641]
[1772214329929,1.78368596,1924.8,1924.2,1.7965641]
[1772214330114,0.48484666,1924.7,1924.2,1.30032473]
[1772214330305,0.48484666,1924.7,1924.2,0.0011]
[1772214330503,0.48484666,1924.7,1924.2,1.30033538]
[1772214330720,2.44484036,1924.8,1924.2,1.79661097]
[1772214331230,1.78366996,1924.9,1924.2,1.79661097]
[1772214331412,0.48484666,1924.8,1924.2,0.0011]
[1772214331616,0.48484666,1924.8,1924.2,1.30033996]
[1772214331930,0.48484666,1924.8,1924.2,0.0011]
[1772214331931,1.78375038,1924.7,1924.2,0.0011]
[1772214332530,0.48484666,1924.7,1924.2,0.0011]
[1772214333835,1.29897121,1924.6,1924.2,0.0011]
[1772214334135,1.78381787,1924.6,1924.2,0.0011]
[1772214336232,2.93281787,1924.6,1924.2,0.0011]
[1772214336432,0.48484666,1924.5,1924.2,0.0011]
[1772214337750,1.149,1924.6,1924.2,0.0011]
[1772214339244,2.93282209,1924.6,1924.2,0.0011]
[1772214339434,0.48484666,1924.5,1924.2,0.0011]
[1772214339617,0.48484666,1924.5,1924.3,0.0011]
[1772214339827,0.48334086,1924.4,1923.9,0.0011]
[1772214340018,0.48334086,1924.4,1923.9,1.30054366]
[1772214340435,0.48334086,1924.4,1923.9,0.0011]
[1772214340748,1.78759469,1924.3,1923.9,0.0011]
[1772214341119,0.48842097,1924.3,1923.9,0.0011]
[1772214342146,0.48842097,1924.5,1923.9,0.0011]
[1772214342349,1.78732739,1924.7,1923.9,0.47422608]
[1772214342519,1.153,1924.6,1924.0,1.29937629]
[1772214342724,1.153,1924.8,1924.1,0.47312608]
[1772214343236,1.64142097,1924.8,1924.1,0.47312608]
[1772214344459,1.29982081,1924.9,1924.1,0.47312608]
[1772214344460,0.001,1924.9,1924.1,0.47312608]
[1772214344619,0.001,1925.2,1924.4,0.47312608]
[1772214344822,0.001,1925.2,1924.5,0.47312608]
[1772214346151,0.48942097,1925.2,1924.5,0.47312608]
[1772214347729,1.78805287,1925.2,1924.5,1.77211204]
[1772214348431,0.48842097,1925.1,1924.4,1.29905984]
[1772214348630,0.48842097,1925.0,1924.4,1.29905984]
[1772214349363,0.48842097,1924.8,1924.1,1.77238237]
[1772214349829,1.29890372,1924.7,1924.1,1.77238237]
[1772214352373,1.29890372,1924.7,1924.5,0.0011]
[1772214352567,1.78713308,1925.0,1924.5,0.0011]
[1772214352765,0.001,1924.9,1924.5,0.0011]
[1772214355770,0.48942097,1924.9,1924.5,0.0011]
[1772214356872,1.78822598,1924.9,1924.5,0.0011]
[1772214357173,1.155,1924.8,1924.5,0.0011]
[1772214357964,2.45480501,1924.9,1924.5,0.0011]
[1772214358864,0.48842097,1924.8,1924.5,0.0011]
[1772214359036,1.29890372,1924.7,1924.5,0.0011]
[1772214359232,1.29890372,1924.7,1924.2,0.47422608]
[1772214359438,0.48842097,1924.6,1924.0,0.00153886]
[1772214359647,1.64542097,1924.5,1924.0,0.00153886]
[1772214360052,1.64542097,1924.5,1924.0,1.30091062]
[1772214360250,1.64542097,1924.5,1924.0,0.00153886]
[1772214360561,1.64542097,1924.5,1924.0,1.30091247]
[1772214360964,1.157,1924.5,1924.1,1.77238404]
[1772214361166,1.157,1924.5,1924.2,0.47312608]
[1772214361368,1.157,1924.8,1924.2,0.47312608]
[1772214361540,0.001,1924.9,1924.2,0.47312608]
[1772214362467,1.29977468,1924.9,1924.2,0.47312608]
[1772214363177,0.001,1924.9,1924.4,0.47312608]
[1772214364549,0.001,1924.9,1924.5,0.52508762]
[1772214365048,0.001,1924.9,1924.5,0.47312608]
[1772214365466,0.001,1924.9,1924.6,1.77209729]
[1772214366148,0.001,1924.9,1924.6,0.47312608]
[1772214366476,0.001,1924.9,1924.5,0.0011]
[1772214366679,0.001,1924.9,1924.5,1.30013828]
[1772214366977,0.001,1924.9,1924.5,0.0011]
[1772214367570,1.29976876,1924.9,1924.5,0.0011]
[1772214367785,0.48842097,1924.8,1924.5,0.0011]
[1772214367967,1.29976876,1924.9,1924.5,0.0011]
[1772214370150,0.001,1924.9,1924.5,0.0011]
[1772214370662,0.001,1924.9,1924.2,0.0011]
[1772214370663,0.49010137,1924.9,1924.2,0.0011]
[1772214371096,0.48910137,1924.8,1924.2,0.0011]
[1772214371851,0.48910137,1924.6,1924.2,0.0011]
[1772214372062,1.64910137,1924.5,1924.2,0.0011]
[1772214373285,1.16,1924.7,1924.2,0.50093231]
[1772214374274,2.45893597,1924.7,1924.2,1.80013779]
[1772214374581,0.48910137,1924.6,1924.0,0.50137117]
[1772214374755,0.48910137,1924.6,1924.0,0.00153886]
[1772214375280,0.48910137,1924.6,1923.9,0.0011]
[1772214375481,0.48910137,1924.4,1923.9,0.0011]
[1772214375689,0.48910137,1924.2,1923.9,0.0011]
[1772214376275,1.29930876,1924.1,1923.9,0.0011]
[1772214376983,1.78841013,1924.1,1923.9,0.0011]
[1772214377684,1.78841013,1924.1,1923.8,0.0011]
[1772214377891,1.78841013,1924.1,1923.5,1.29970934]
[1772214378089,0.48910137,1924.0,1923.4,0.49983231]
[1772214378266,2.9515452,1923.9,1923.3,0.0011]
[1772214378666,0.48910137,1923.8,1923.3,0.0011]
[1772214380290,0.48910137,1923.6,1923.1,0.0011]
[1772214380492,1.165,1923.5,1923.1,0.0011]
[1772214381002,0.48910137,1923.4,1923.1,0.0011]
[1772214381192,0.48910137,1923.4,1922.9,0.0011]
[1772214381906,1.165,1923.5,1922.9,0.50093231]
[1772214382064,1.166,1923.4,1922.9,0.50093231]
[1772214382268,1.166,1923.4,1923.1,0.49983231]
[1772214383383,0.48910137,1923.9,1923.3,0.49983231]
[1772214383585,2.46545012,1923.9,1923.3,0.49983231]
[1772214384469,2.4654547,1923.9,1923.3,1.79967369]
[1772214384667,2.95455607,1923.9,1923.3,1.79967369]
[1772214385685,3.92947384,1923.8,1923.1,1.79977936]
[1772214385997,0.48910137,1923.7,1923.1,1.79977936]
[1772214386479,1.78870377,1923.7,1923.1,1.79977936]
[1772214386685,0.48910137,1923.7,1923.1,1.79977936]
[1772214386985,1.79005869,1924.0,1923.2,0.49983231]
[1772214387299,6.39743116,1924.0,1923.2,0.49983231]
[1772214387500,0.48910137,1923.9,1923.2,0.49983231]
[1772214389104,1.29951138,1923.8,1923.3,1.29984921]
[1772214389305,1.78860081,1923.9,1923.3,1.29984921]
[1772214389481,9.80665245,1924.0,1923.4,0.49983231]
[1772214389482,1.16853886,1924.0,1923.4,0.49983231]
[1772214389903,2.46791587,1924.0,1923.4,0.49983231]
[1772214390311,2.95701724,1924.0,1923.4,0.49983231]
[1772214390679,1.65764023,1924.0,1923.4,0.49983231]
[1772214391175,0.001,1923.7,1923.5,1.29971406]
[1772214391703,0.00153886,1924.0,1923.5,1.29971406]
[1772214392599,0.48910137,1923.9,1923.2,0.50093231]
[1772214392806,0.48910137,1923.8,1923.2,1.30099713]
[1772214393677,1.29957893,1923.7,1923.2,1.30099713]
[1772214393881,1.7886803,1923.7,1923.2,1.30099713]
[1772214394080,0.48910137,1923.7,1923.2,1.30099713]
[1772214395014,0.48910137,1923.7,1923.2,0.0011]
[1772214395483,1.167,1923.9,1923.2,0.50093231]
[1772214395811,1.167,1923.8,1923.3,1.79968152]
[1772214396390,0.00153886,1924.0,1923.4,0.49983231]
[1772214397429,3.44037247,1924.4,1923.4,0.49983231]
[1772214397430,0.48910137,1924.6,1923.4,0.49983231]
[1772214397587,1.78807752,1924.6,1923.6,0.49983231]
[1772214397787,0.48910137,1924.6,1923.8,0.49983231]
[1772214398513,1.65710137,1924.8,1923.8,0.49983231]
[1772214399229,0.001,1924.8,1923.8,0.49983231]
[1772214399796,0.001,1924.8,1924.0,0.47563052]
[1772214400097,0.001,1924.8,1924.2,0.47563052]
[1772214403024,0.45508014,1924.9,1924.4,0.46813645]
[1772214403025,0.001,1924.9,1924.4,0.46813645]
[1772214403393,0.001,1924.9,1924.6,0.46813645]
[1772214403891,1.75245076,1925.5,1924.6,0.46813645]
[1772214404102,1.75244805,1925.5,1924.6,0.46813645]
[1772214404813,0.45408014,1925.4,1924.7,1.29890372]
[1772214405027,0.45408014,1925.4,1924.7,1.76704017]
[1772214405618,1.29836791,1925.5,1924.8,0.46813645]
[1772214405619,0.45408014,1925.5,1924.8,0.46813645]
[1772214405927,0.45408014,1925.4,1924.6,1.29892662]
[1772214406695,0.45408014,1925.4,1924.6,1.76706307]
[1772214406896,1.29849893,1925.3,1924.6,1.76706307]
[1772214407734,1.75257907,1925.3,1924.6,1.76706307]
[1772214409535,1.29841919,1925.5,1924.7,0.46813645]
[1772214410828,1.75249933,1925.5,1924.7,0.46813645]
[1772214412034,1.75249933,1925.5,1924.8,1.29883624]
[1772214412232,1.29841919,1925.5,1924.7,1.76698581]
[1772214412465,0.45408014,1925.4,1924.5,1.76712001]
[1772214412833,0.45408014,1925.4,1924.5,0.46813645]
[1772214413039,0.45408014,1925.4,1924.5,1.76716937]
[1772214413761,0.45408014,1925.4,1924.4,1.29907774]
[1772214414079,0.45408014,1925.4,1924.5,0.46813645]
[1772214414244,1.75252231,1925.4,1924.7,0.46813645]
[1772214415536,0.45408014,1925.3,1924.7,0.46813645]
[1772214415976,0.45408014,1925.3,1924.6,1.29897121]
[1772214416137,1.29856638,1925.2,1924.6,1.29897121]
[1772214417256,1.75264652,1925.2,1924.6,1.30007121]
[1772214417860,1.75264652,1925.2,1924.6,1.76820766]
[1772214419371,5.19519677,1925.3,1924.7,0.46813645]
[1772214419953,1.29949893,1925.3,1924.7,0.46813645]
[1772214420157,0.001,1925.3,1924.7,0.46813645]
[1772214420375,0.001,1925.3,1924.8,1.29883624]
[1772214420676,0.001,1925.3,1924.8,1.76697269]
[1772214421548,0.001,1925.3,1924.6,0.0011]
[1772214421549,0.45408014,1924.8,1924.6,0.0011]
[1772214422579,1.75292531,1924.8,1924.6,0.0011]
[1772214422761,0.45408014,1924.7,1924.3,0.0011]
[1772214423270,0.45408014,1924.8,1924.3,0.0011]
[1772214423776,0.45408014,1924.6,1924.3,0.0011]
[1772214423966,1.75288282,1924.9,1924.3,0.0011]
[1772214424290,0.45408014,1925.0,1924.3,0.0011]
[1772214424448,0.45408014,1924.9,1924.3,0.0011]
[1772214424771,2.91891638,1924.8,1924.3,0.0011]
[1772214424943,0.45408014,1924.7,1924.3,0.0011]
[1772214426557,5.19481682,1925.0,1924.3,0.46923645]
[1772214426558,0.45408014,1925.0,1924.3,0.46923645]
[1772214426756,1.75278191,1925.0,1924.4,1.29910621]
[1772214427161,0.45408014,1924.9,1924.4,1.29910621]
[1772214427884,0.45408014,1924.9,1924.3,1.76835799]
[1772214428101,0.45408014,1924.7,1924.3,0.0011]
[1772214428676,1.62208014,1924.7,1924.3,0.0011]
[1772214429389,1.29897121,1924.6,1924.4,0.0011]
[1772214430470,2.92102645,1924.7,1924.4,0.0011]
[1772214431162,1.62208014,1924.7,1924.4,0.0011]
[1772214431462,2.92098823,1924.7,1924.4,0.0011]
[1772214431854,2.45651645,1924.5,1924.0,0.00153886]
[1772214432061,2.94543285,1924.3,1923.8,1.29947263]
[1772214432379,0.4889164,1924.3,1923.8,1.29947263]
[1772214433181,0.4889164,1924.3,1923.7,1.29955115]
[1772214433367,0.4889164,1924.3,1923.4,0.45967743]
[1772214433368,1.78815764,1924.2,1923.4,0.45967743]
[1772214433568,0.4889164,1924.1,1923.3,0.0011]
[1772214433888,0.4889164,1923.9,1923.3,1.30093494]
[1772214434383,2.94543285,1923.8,1923.3,0.0011]
[1772214434556,0.4889164,1923.8,1923.3,0.0011]
[1772214434881,0.4889164,1923.7,1923.3,0.0011]